[Event "Doeberl Cup 2022"]
[Site "Canberra"]
[Date "2022.04.18"]
[Round "9.7"]
[White "Banerjee, Niki"]
[Black "Clarke, Matthew"]
[Result "1/2-1/2"]
[ECO "D13"]
[WhiteElo "2043"]
[BlackElo "2109"]
[Annotator "TA"]
[PlyCount "131"]
[EventDate "2022.04.14"]
[EventType "swiss"]
[EventCountry "AUS"]
[SourceTitle "playchess.com"]
[Source "ChessBase"]
[SourceQuality "1"]
[TimeControl "5400+30"]

{[%evp 18,131,18,23,31,19,24,18,20,18,8,36,29,28,49,37,67,69,72,61,70,74,73,73,94,77,84,79,117,127,126,67,57,27,33,25,37,28,133,131,137,111,131,86,107,99,102,89,100,0,0,0,0,0,0,0,0,0,0,0,0,0,0,0,0,0,0,0,0,0,0,0,0,0,0,0,0,0,0,0,0,0,0,0,0,0,0,0,0,0,0,0,0,0,0,0,0,0,0,0,0,0,0,0,0,0,0,0,0,0,0,0,0,0,0,0]} 1. d4 {[%emt 1:31:00]} d5 {[%emt 1:31:00]} 2. c4 {[%emt 0:00:30]} c6 {[%emt 0:00:30]} 3. cxd5 {[%emt 0:00:30]} cxd5 {[%emt 0:00:30]} 4. Nc3 {[%emt 0:00:30]} Nf6 {[%emt 0:00:30]} 5. Bg5 {[%emt 0:00:30]} e6 {[%emt 0:00:30]} 6. e3 {[%emt 0:00:30]} Nc6 {[%emt 0:00:30]} 7. Bd3 {[%emt 0:00:30]} h6 {[%emt 0:00:30]} 8. Bh4 {[%emt 0:00:30]} Be7 {[%emt 0:00:30]} 9. Nf3 {[%emt 0:00:30]} O-O {[%emt 0:00:30]} 10. O-O {[%emt 0:00:30]} Ne4 {[%emt 0:00:30] D13: Slav Defence: Exchange variation without ...Bf5.} 11. Bxe7 {[%emt 0:00:30]} Nxc3 {[%emt 0:00:30]} 12. bxc3 {[%emt 0:00:30]} Qxe7 {[%emt 0:00:30]} 13. e4 {[%emt 0:00:30]} dxe4 {[%emt 0:00:30]} 14. Bxe4 {[%emt 0:00:30] [#]} Rd8 $146 {[%emt 0:00:30]} ({Predecessor:} 14... Bd7 15. Bc2 Rfd8 16. Qd3 g6 17. Rfe1 Qf6 18. Qd2 Qg7 19. h4 Rac8 20. Rab1 b6 {½-½ (89) Bondarevsky,I-Simagin,V Moscow 1946}) 15. Re1 {[%emt 0:00:30]} Qc7 {[%emt 0:00:30]} 16. Bc2 {[%emt 0:00:30]} Bd7 {[%emt 0:00:30]} 17. Qd3 {[%emt 0:00:30] Threatens to win with Qh7+.} g6 {[%emt 0:00:30]} 18. h4 $36 {[%emt 0:00:30][%cal Oh4h5][%mdl 2048] White has some pressure.} Rac8 {[%emt 0:00:30]} 19. Qe3 {[%emt 0:00:30]} Kg7 {[%emt 0:00:30]} 20. Rac1 {[%emt 0:00:30][%cal Oh4h5]} Ne7 {[%emt 0:00:30] [#] And now ...Nd5 would win.} 21. c4 {[%emt 0:00:30][%cal Oh4h5] Against Nd5} Nf5 {[%emt 0:00:30]} 22. Bxf5 {[%emt 0:00:30]} exf5 {[%emt 0:00:30]} 23. d5 {[%emt 0:00:30]} Qc5 {[%emt 0:00:30]} 24. Qe5+ {[%emt 0:00:30]} (24. Qf4 $16) 24... f6 $1 $14 {[%emt 0:00:30]} 25. Qe7+ {[%emt 0:00:30]} Qxe7 {[%emt 0:00:30]} 26. Rxe7+ {[%emt 0:00:30]} Kf8 {[%emt 0:00:30]} 27. Rce1 {[%emt 0:00:30]} Be8 {[%emt 0:00:30]} (27... Kg8 $11 {remains equal.}) 28. Rxb7 $16 {[%emt 0:00:30] 0x0.00138d2c057ddp-1022s more active pieces.} (28. Nd2 $6 Rd7 29. Rxd7 (29. R7e6 Bf7 $15) 29... Bxd7 $11) 28... Rxc4 {[%emt 0:00:30] [#]} 29. Re6 $1 {[%emt 0:00:30]} (29. Rxa7 $6 Rxd5 30. Ra6 Re4 $11) 29... Kg8 {[%emt 0:00:30]} 30. Ree7 {[%emt 0:00:30][%cal Od5d6]} a5 {[%emt 0:00:30]} 31. d6 {[%emt 0:00:30]} Rc1+ {[%emt 0:00:30]} (31... Bc6 $2 32. Rg7+ (32. Rbc7 Bd5 $16) 32... Kh8 33. Rh7+ Kg8 34. Rbg7+ Kf8 35. Rf7+ (35. Rxg6 Rxd6 36. Rhxh6 Bxf3 $16) 35... Kg8 36. Rfg7+ (36. Rhg7+ Kh8 $16) 36... Kf8 37. Rf7+ (37. Rxg6 Rxd6 38. Rgxh6 Rg4 $16) 37... Kg8 38. Rfg7+ $16 (38. Rhg7+ Kh8 $16)) 32. Kh2 {[%emt 0:00:30]} Rd1 {[%emt 0:00:30] Against Nd4} 33. h5 {[%emt 0:00:30]} (33. Rg7+ $16 Kf8 34. Rh7) 33... g5 $1 $11 {[%emt 0:00:30] The position is equal.} 34. Rg7+ {[%emt 0:00:30]} Kf8 {[%emt 0:00:30]} 35. Rh7 {[%emt 0:00:30][%cal Rh7h8]} Kg8 {[%emt 0:00:30] Against Rh8+} 36. Rbg7+ {[%emt 0:00:30]} Kf8 {[%emt 0:00:30]} 37. Ra7 {[%emt 0:00:30][%cal Rh7h8]} Kg8 {[%emt 0:00:30] Against Rh8+} 38. Rxh6 {[%emt 0:00:30] Rhh7 is the strong threat.} R1xd6 {[%emt 0:00:30]} 39. Rhh7 {[%emt 0:00:30]} ({But not} 39. Rxa5 $2 Kg7 40. Nxg5 Kxh6 $19) 39... R8d7 {[%emt 0:00:30] Inhibits Rag7+.} 40. Rhxd7 {[%emt 0:00:30]} Bxd7 {[%emt 0:00:30]} 41. Rxa5 {[%emt 0:00:30][%mdl 4096] Endgame KRB-KRN} Kg7 {[%emt 0:00:30]} 42. Ra8 {[%emt 0:00:30]} Bb5 {[%emt 0:00:30]} 43. a4 {[%emt 0:00:30]} Be2 {[%emt 0:00:30]} 44. a5 {[%emt 0:00:30]} Kh6 {[%emt 0:00:30]} 45. Rh8+ {[%emt 0:00:30]} Kg7 {[%emt 0:00:30]} 46. Rc8 {[%emt 0:00:30]} Kh6 {[%emt 0:00:30]} 47. Rc2 {[%emt 0:00:30]} Bxf3 {[%emt 0:00:30]} 48. gxf3 {[%emt 0:00:30]} Kxh5 {[%emt 0:00:30] KR-KR} 49. Ra2 {[%emt 0:00:30]} Ra6 {[%emt 0:00:30]} 50. f4 {[%emt 0:00:30]} Kg4 {[%emt 0:00:30]} ({Don't take} 50... gxf4 51. Kg2 $16) 51. Ra4 {[%emt 0:00:30]} Kf3 {[%emt 0:00:30]} ({Resist} 51... gxf4 52. Kg2 $16) 52. Kg1 {[%emt 0:00:30]} g4 {[%emt 0:00:30]} 53. Kf1 {[%emt 0:00:30]} Rd6 {[%emt 0:00:30][%cal Rd6d1]} 54. Ra3+ {[%emt 0:00:30]} Kxf4 {[%emt 0:00:30]} 55. a6 {[%emt 0:00:30] White wants to mate with a7.} Rd8 {[%emt 0:00:30]} 56. a7 {[%emt 0:00:30]} Ra8 {[%emt 0:00:30]} 57. Kg2 {[%emt 0:00:30] Black must now prevent Ra5.} Kg5 $1 {[%emt 0:00:30]} 58. Ra5 {[%emt 0:00:30] Strongly threatening Kg3.} Kf4 {[%emt 0:00:30]} 59. Kh2 {[%emt 0:00:30] aiming for Kg2.} Kf3 {[%emt 0:00:30]} 60. Rxf5+ {[%emt 0:00:30]} Ke2 {[%emt 0:00:30]} 61. Kg3 {[%emt 0:00:30] Hoping for Ra5.} Rxa7 {[%emt 0:00:30]} 62. Rxf6 {[%emt 0:00:30]} Ra4 {[%emt 0:00:30]} 63. Re6+ {[%emt 0:00:30]} Kf1 {[%emt 0:00:30]} 64. Re5 {[%emt 0:00:30]} Ra2 {[%emt 0:00:30]} 65. Re3 {[%emt 0:00:30]} Rxf2 {[%emt 0:00:30]} 66. Kxg4 {[%emt 0:00:30] Weighted Error Value: White=0.05 (flawless) /Black=0.06 (flawless)} 1/2-1/2